bitfinex-derivatives/quotes_SOLF0:USTF0_20250221
["timestamp","ask_amount","ask_price","bid_price","bid_amount"]
[1740156107546,0.03695468,175.52,175.48,0.037808]
[1740156108056,5.6973,175.49,175.45,149.12]
[1740156108249,3.6221,175.51,175.45,149.12]
[1740156108654,9.3188,175.51,175.45,149.12]
[1740156108849,3.6221,175.51,175.45,149.12]
[1740156109245,5.6979,175.47,175.46,0.04113808]
[1740156109449,3.6221,175.51,175.42,5.6992]
[1740156109650,3.6221,175.51,175.37,9.82]
[1740156109851,3.6221,175.51,175.4,5.6998]
[1740156110054,3.6221,175.51,175.37,9.82]
[1740156110357,5.6976,175.48,175.43,5.6989]
[1740156110654,0.04034676,175.47,175.44,0.04072157]
[1740156111658,0.04034676,175.47,175.45,5.6983]
[1740156111956,0.04034676,175.47,175.44,0.04072157]
[1740156112358,5.73824676,175.47,175.44,0.04072157]
[1740156112657,0.04034676,175.47,175.44,0.04072157]
[1740156113360,0.04034676,175.47,175.35,149.1]
[1740156113657,1.819,175.5,175.28,233.35479028]
[1740156113857,1.819,175.5,175.3,180.05546082]
[1740156114057,1.819,175.5,175.3,189.87546082]
[1740156114355,5.6977,175.47,175.3,189.87546082]
[1740156114551,0.04066438,175.42,175.38,0.04216787]
[1740156114953,0.04066438,175.42,175.41,5.6996]
[1740156115350,6.438e-05,175.42,175.41,5.6996]
[1740156118357,6.438e-05,175.42,175.39,5.7]
[1740156118556,6.438e-05,175.42,175.31,7.7388652]
[1740156118956,5.7,175.4,175.36,5.701]
[1740156119154,1.819,175.5,175.31,7.7388652]
[1740156119359,1.7885,175.39,175.31,7.7388652]
[1740156119559,7.4888,175.39,175.36,5.7012]
[1740156119768,0.04115631,175.37,175.36,5.7012]
[1740156119954,0.04115631,175.37,175.33,0.03890875]
[1740156120160,0.04115631,175.37,175.36,5.7013]
[1740156120463,0.04115631,175.37,175.33,0.03890875]
[1740156121757,5.7015,175.36,175.33,0.03890875]
[1740156122461,5.7013,175.36,175.33,0.03890875]
[1740156122963,0.04115631,175.37,175.29,5.7034]
[1740156123162,0.04115631,175.37,175.21,0.57272013]
[1740156123358,1.7686,175.38,175.21,0.57272013]
[1740156123563,1.7686,175.38,175.26,5.7045]
[1740156123866,1.7462,175.37,175.21,0.57272013]
[1740156124169,0.03626825,175.34,175.3,0.03720843]
[1740156124367,0.03626825,175.34,175.28,5.7037]
[1740156124662,0.03626825,175.34,175.21,0.57272013]
[1740156124861,1.7462,175.37,175.21,0.57272013]
[1740156125058,5.7016,175.35,175.21,0.57272013]
[1740156125264,1.7462,175.37,175.21,0.57272013]
[1740156125463,0.04270787,175.3,175.26,0.0403345]
[1740156125664,0.04270787,175.3,175.21,0.57272013]
[1740156125866,0.04270787,175.3,175.26,0.04348932]
[1740156126066,0.04270787,175.3,175.29,5.7034]
[1740156126266,0.04270787,175.3,175.26,0.04348932]
[1740156126564,0.04270787,175.3,175.21,0.57272013]
[1740156126763,0.04270787,175.3,175.13,15.06953336]
[1740156126967,0.04270787,175.3,175.19,5.7065]
[1740156127165,1.04849671,175.36,175.19,5.7065]
[1740156127366,5.7055,175.23,175.13,15.06953336]
[1740156127666,0.04156103,175.2,175.16,0.04028119]
[1740156128063,1.04871418,175.36,175.12,30.95546082]
[1740156128261,5.7061,175.22,175.17,5.7072]
[1740156128464,0.03781988,175.2,175.16,0.03626693]
[1740156128657,0.03781988,175.2,175.11,9.82]
[1740156128867,0.03781988,175.2,175.16,0.03705544]
[1740156129270,0.03781988,175.2,175.17,5.7071]
[1740156129462,0.03781988,175.2,175.16,0.03705544]
[1740156129666,5.7068,175.19,175.16,0.03705544]
[1740156129861,0.03781988,175.2,175.16,0.03705544]
[1740156130461,0.03781988,175.2,175.09,149.18]
[1740156130667,1.04901304,175.29,175.09,149.18]
[1740156130968,194.0,175.28,175.09,149.18]
[1740156131164,1.04901304,175.27,175.09,149.18]
[1740156131566,0.03805159,175.2,175.16,0.04257671]
[1740156131766,0.03805159,175.2,175.05,0.57327435]
[1740156132070,194.0,175.26,175.05,0.57327435]
[1740156132271,5.708,175.16,175.11,5.7094]
[1740156132466,195.04901304,175.25,175.05,0.57327435]
[1740156132467,194.0,175.25,175.05,0.57327435]
[1740156132662,194.0,175.25,175.14,5.7082]
[1740156132863,0.04370486,175.17,175.13,0.04010323]
[1740156133067,194.0,175.25,175.05,0.57327435]
[1740156133268,0.03616724,175.17,175.13,0.03943327]
[1740156133670,1.04919582,175.24,175.05,0.57327435]
[1740156133868,0.0420333,175.17,175.13,0.03864507]
[1740156134170,0.0420333,175.17,175.05,0.57327435]
[1740156134372,0.0420333,175.17,175.13,0.03619789]
[1740156134569,194.0,175.23,175.05,0.57327435]
[1740156134777,0.03999727,175.13,175.05,0.57327435]
[1740156134973,0.03999727,175.13,175.12,0.04033768]
[1740156135169,0.03999727,175.13,175.05,0.57327435]
[1740156135472,0.03999727,175.13,175.11,0.04069383]
[1740156135673,0.03999727,175.13,175.07,0.04073071]
[1740156136268,0.03999727,175.13,175.12,5.7091]
[1740156136678,5.74879727,175.13,175.05,0.57327435]
[1740156136870,0.03999727,175.13,175.05,0.57327435]
[1740156137176,5.74899727,175.13,175.09,5.7097]
[1740156137377,0.03999727,175.13,175.05,0.57327435]
[1740156137875,0.03999727,175.13,175.0,1.7568]
[1740156138065,0.03999727,175.13,175.07,0.04104399]
[1740156138270,1.04939653,175.21,175.07,0.04104399]
[1740156138467,0.04087182,175.12,175.07,0.04104399]
[1740156138672,1.04939653,175.19,174.99,149.26]
[1740156138875,0.03990941,175.11,175.08,0.0412572]
[1740156139075,0.03990941,175.11,174.99,149.26]
[1740156139270,1.04939653,175.17,174.99,149.26]
[1740156139468,194.0,175.16,174.91,11.4314]
[1740156139781,1.04970803,175.15,174.91,11.4314]
[1740156140179,0.03843464,175.05,175.02,5.7121]
[1740156140676,0.03784943,175.05,175.02,0.04274676]
[1740156141581,0.03784943,175.05,175.04,5.7117]
[1740156142072,4.943e-05,175.05,175.04,5.7117]
[1740156142269,1.8605,175.13,175.12,5.7091]
[1740156142670,5.7073,175.18,175.02,9.82]
[1740156143271,5.7073,175.18,175.08,0.0429547]
[1740156143579,0.03659403,175.12,175.08,0.0429547]
[1740156143782,0.03659403,175.12,175.11,5.7094]
[1740156143985,5.7067,175.2,175.02,9.82]
[1740156144181,0.03884946,175.13,175.1,0.03735668]
[1740156144384,0.03884946,175.13,175.12,5.7091]
[1740156144680,0.04198031,175.14,175.1,0.03735668]
[1740156145074,5.707,175.19,175.15,5.7079]
[1740156145474,0.03866536,175.19,175.12,5.7089]
[1740156145685,0.03866536,175.19,175.15,0.0403917]
[1740156145977,0.03727656,175.19,175.01,213.245]
[1740156146281,1.7578,175.23,175.12,5.7091]
[1740156146481,5.7084,175.15,175.01,213.245]
[1740156146678,5.7084,175.15,175.1,5.7095]
[1740156147077,0.04065068,175.14,175.11,0.04004371]
[1740156147473,5.709,175.13,175.11,0.04180204]
[1740156147672,0.03981023,175.14,175.11,0.04180204]
[1740156148079,5.7091,175.12,175.11,0.04180204]
[1740156148280,0.03981023,175.14,175.11,0.04180204]
[1740156148675,5.7091,175.12,175.11,0.04180204]
[1740156150783,5.7095,175.11,175.02,1.7363]
[1740156150981,194.0,175.21,175.02,1.7363]
[1740156151283,1.7419,175.2,175.02,1.7363]
[1740156151877,0.04097174,175.13,175.09,0.03930891]
[1740156152086,0.04097174,175.13,175.02,1.7363]
[1740156152383,5.709,175.13,175.09,0.0420001]
[1740156152577,1.7419,175.2,175.09,0.0420001]
[1740156152774,0.03874581,175.13,175.1,5.7095]
[1740156152973,1.7419,175.2,175.02,1.7363]
[1740156153174,0.03955082,175.13,175.1,0.04125625]
[1740156153375,5.7104,175.08,175.0,149.38]
[1740156153580,9.8,175.18,175.0,149.38]
[1740156153781,205.4151,175.17,175.0,149.38]
[1740156153982,5.7109,175.07,175.03,5.7119]
[1740156154380,5.7109,175.07,175.04,5.7116]
[1740156154685,0.03659263,175.07,175.03,0.03303024]
[1740156155083,0.03659263,175.07,175.05,5.7113]
[1740156155485,0.03659263,175.07,175.03,0.03303024]
[1740156155684,5.7112,175.06,175.03,0.03303024]
[1740156156786,5.7114,175.05,175.03,0.03303024]
[1740156156986,0.03659263,175.07,175.03,0.03303024]
[1740156158794,0.03659263,175.07,175.04,5.7114]
[1740156159098,0.03659263,175.07,175.03,0.03303024]
[1740156159596,0.03659263,175.07,175.05,5.7112]
[1740156159799,0.03659263,175.07,175.03,0.03303024]
[1740156160797,0.03659263,175.07,175.06,5.711]
[1740156161189,1.7594,175.15,175.03,0.03303024]
[1740156161389,1.8357,175.16,175.01,3.6709]
[1740156161590,5.7085,175.14,175.01,3.6709]
[1740156161790,1.8357,175.16,175.01,3.6709]
[1740156162002,1.8357,175.16,175.08,5.7101]
[1740156162299,1.8357,175.16,175.01,3.6709]
[1740156162494,0.04332783,175.14,175.11,5.7093]
[1740156162692,1.8357,175.16,175.1,0.03636198]
[1740156162693,5.7082,175.15,175.1,0.03636198]
[1740156162890,0.04180124,175.14,175.1,0.03636198]
[1740156163092,0.04180124,175.14,175.1,5.74586198]
[1740156163497,5.7093,175.12,175.1,0.03636198]
[1740156164101,0.04180124,175.14,175.1,0.03636198]
[1740156164301,5.7094,175.12,175.1,0.03636198]
[1740156164501,0.04180124,175.14,175.1,0.03636198]
[1740156164905,5.7094,175.11,175.1,0.03636198]
[1740156165698,0.04180124,175.14,175.1,0.03636198]
[1740156166304,5.7094,175.11,175.1,0.03636198]
[1740156166798,0.04180124,175.14,175.1,0.03636198]
[1740156167504,5.7094,175.11,175.1,0.03636198]
[1740156167694,0.04180124,175.14,175.01,153.1109]
[1740156167895,1.7055,175.15,174.96,30.95546082]
[1740156168701,13.1219,175.15,174.96,30.95546082]
[1740156168902,0.03914821,175.07,175.04,0.0332609]
[1740156169203,13.1219,175.15,174.96,30.95546082]
[1740156169502,0.042172,175.07,175.04,0.0332609]
[1740156169697,13.1219,175.15,175.03,5.7119]
[1740156169898,0.03926376,175.07,175.04,0.0332609]
[1740156170103,13.1219,175.15,175.03,5.7119]
[1740156170296,5.75234733,175.07,175.04,0.0332609]
[1740156170502,0.03612584,175.07,174.95,4.13437934]
[1740156170698,1.7055,175.15,175.04,0.0332609]
[1740156171005,1.7055,175.15,175.08,0.0332609]
[1740156171200,1.8357,175.16,174.95,4.13437934]
[1740156171401,1.8357,175.16,174.95,196.13437934]
[1740156172103,0.04055719,175.07,175.04,0.03677492]
[1740156172299,1.8357,175.16,175.01,9.8]
[1740156172500,0.04392307,175.07,175.04,0.04209327]
[1740156172700,1.8357,175.16,175.02,1.8726]
[1740156172904,0.03749165,175.07,175.04,0.03896332]
[1740156173103,1.8357,175.16,175.04,0.03896332]
[1740156173306,1.8357,175.16,175.1,5.7097]
[1740156173507,1.8357,175.16,175.03,3.5964]
[1740156174197,5.7097,175.1,175.08,0.04376194]
[1740156174402,0.03841374,175.11,175.08,0.04376194]
[1740156174907,5.74781374,175.11,175.08,5.75406194]
[1740156175104,5.74781374,175.11,175.08,0.04376194]
[1740156175908,0.03841374,175.11,175.08,0.04376194]
[1740156177008,5.74791374,175.11,175.08,0.04376194]
[1740156177208,0.03841374,175.11,175.08,0.04376194]
[1740156178699,5.74811374,175.11,175.08,0.04376194]
[1740156179100,0.03841374,175.11,175.08,0.04376194]
[1740156179314,5.74791374,175.11,175.08,0.04376194]
[1740156179509,0.03841374,175.11,175.08,0.04376194]
[1740156179910,5.71,175.09,175.08,0.04376194]
[1740156180615,0.03841374,175.11,174.97,180.39546082]
[1740156180802,1.7952,175.1,174.97,180.39546082]
[1740156181113,5.7122,175.03,174.97,180.39546082]
[1740156181311,1.7952,175.1,174.97,180.39546082]
[1740156181711,0.0388902,175.05,175.02,0.04141837]
[1740156182103,0.0388902,175.05,174.94,91.61386715]
[1740156182104,0.0388902,175.05,174.92,30.95546082]
[1740156182511,1.7952,175.1,174.92,30.95546082]
[1740156182707,1.7312,175.08,174.92,30.95546082]
[1740156183608,0.04215513,175.02,174.98,0.02242246]
[1740156184415,0.04215513,175.02,175.01,5.7127]
[1740156184613,0.04215513,175.02,174.98,0.02242246]
[1740156184814,0.04215513,175.02,175.0,5.7127]
[1740156185013,0.04215513,175.02,174.98,0.02242246]
[1740156186013,0.04215513,175.02,174.98,5.73602246]
[1740156186318,0.04215513,175.02,174.98,0.02242246]
[1740156189114,0.04215513,175.02,175.01,5.7127]
[1740156191616,0.04215513,175.02,174.98,0.02242246]
[1740156192212,0.04215513,175.02,174.98,5.73582246]
[1740156192908,5.7128,175.01,174.98,5.73582246]
[1740156193315,5.7128,175.01,174.98,0.02242246]
[1740156193513,5.75465513,175.02,174.98,0.02242246]
[1740156193714,5.75465513,175.02,174.99,5.7131]
[1740156193915,0.04215513,175.02,174.98,0.02242246]
[1740156194918,0.04215513,175.02,175.0,5.7129]
[1740156195220,0.04215513,175.02,174.98,0.02242246]
[1740156195419,0.04215513,175.02,174.99,5.7132]
[1740156195620,0.04215513,175.02,174.98,0.02242246]
[1740156198121,0.04215513,175.02,174.99,5.7132]
[1740156198316,0.04215513,175.02,174.98,0.02242246]
[1740156198624,0.04215513,175.02,174.98,5.73592246]
[1740156198818,0.04215513,175.02,174.98,0.02242246]
[1740156199018,5.7127,175.01,174.98,0.02242246]
[1740156199324,5.7127,175.01,174.98,5.73602246]
[1740156199719,5.7127,175.01,174.98,5.73592246]
[1740156199911,5.75455513,175.02,174.98,0.02242246]
[1740156200821,0.04215513,175.02,174.98,0.02242246]
[1740156201323,0.04215513,175.02,174.99,5.7132]
[1740156201823,0.04215513,175.02,174.98,0.02242246]
[1740156202823,0.04215513,175.02,174.99,5.7132]
[1740156203025,0.04215513,175.02,174.98,0.02242246]
[1740156205326,5.7129,175.01,174.98,0.02242246]
[1740156205524,0.04215513,175.02,174.98,0.02242246]
[1740156206026,5.7128,175.01,174.98,0.02242246]
[1740156206429,0.04215513,175.02,174.98,0.02242246]
[1740156206628,0.04215513,175.02,174.87,154.7246]
[1740156206829,11.4912,175.08,174.87,154.7246]
[1740156207030,5.7139,174.98,174.94,5.7147]
[1740156207323,194.0,175.07,174.94,5.7147]
[1740156207530,194.0,175.07,174.95,5.7146]
[1740156207722,5.7138,174.98,174.95,5.7146]
[1740156207922,0.03806737,175.03,174.97,5.7139]
[1740156208125,5.7121,175.03,174.87,154.7246]
[1740156208320,0.04006976,175.02,174.87,154.7246]
[1740156208622,0.0364979,174.96,174.87,154.7246]
[1740156208823,0.0364979,174.96,174.89,11.4332]
[1740156209023,0.0364979,174.96,174.95,5.7146]
[1740156209220,194.0,175.07,174.87,154.7246]
[1740156209530,1.7312,175.08,174.9,11.4325]
[1740156209730,1.7312,175.08,174.98,5.7134]
[1740156209926,5.7124,175.02,174.9,11.4325]
[1740156210132,1.7312,175.08,174.9,11.4325]
[1740156210330,0.03596756,174.98,174.97,5.7139]
[1740156210730,0.03649679,174.99,174.96,0.0364979]
[1740156211025,1.7312,175.08,174.87,152.9767]
[1740156211227,0.04058465,174.99,174.96,0.0364979]
[1740156211428,5.7129,175.01,174.97,5.7137]
[1740156211730,0.04371808,174.99,174.97,5.7137]
[1740156211923,1.7312,175.08,174.97,5.7137]
[1740156212124,0.04053068,175.0,174.97,5.7138]
[1740156212323,1.7312,175.08,174.97,5.7138]
[1740156212522,0.04182848,175.0,174.97,0.0364979]
[1740156212724,1.7312,175.08,174.87,152.9767]
[1740156212924,0.03602149,175.0,174.97,0.0364979]
[1740156213230,1.7312,175.08,174.96,5.7141]
[1740156213538,0.04073978,175.0,174.97,0.0364979]
[1740156213738,1.7312,175.08,174.97,0.0364979]
[1740156214039,5.7126,175.02,175.01,0.0364979]
[1740156214234,5.7126,175.02,174.98,5.7136]
[1740156214434,5.7126,175.02,175.0,0.0364979]
[1740156214934,0.03972777,175.03,175.0,0.0364979]
[1740156216033,5.75182777,175.03,175.0,0.0364979]
[1740156216230,0.03972777,175.03,175.0,0.0364979]
[1740156217739,0.03972777,175.03,175.0,5.7493979]
[1740156217940,0.03972777,175.03,175.0,0.0364979]
[1740156218242,0.03972777,175.03,175.01,5.7126]
[1740156218441,0.03972777,175.03,175.0,0.0364979]
[1740156218844,0.03972777,175.03,175.0,5.7491979]
[1740156219741,0.03972777,175.03,175.01,5.7124]
[1740156219942,0.03972777,175.03,175.0,0.0364979]
[1740156220245,0.03972777,175.03,175.0,5.7492979]
[1740156220446,0.03972777,175.03,175.0,0.0364979]
[1740156220944,0.03972777,175.03,175.01,5.7126]
[1740156221551,0.03972777,175.03,175.0,0.0364979]
[1740156221552,5.75172777,175.03,175.0,0.0364979]
[1740156221741,0.03972777,175.03,175.0,0.0364979]
[1740156222142,5.7127,175.01,174.96,5.7141]
[1740156222454,5.7127,175.01,174.88,9.76]
[1740156222651,1.8318,175.02,174.96,5.714]
[1740156222851,1.8318,175.02,174.87,242.91406715]
[1740156223053,1.8318,175.02,174.9,1.8475]
[1740156223448,0.03928484,174.98,174.9,1.8475]
[1740156223643,0.03928484,174.98,174.88,30.95546082]
[1740156224352,5.7142,174.97,174.92,5.7155]
[1740156224651,0.03928484,174.98,174.88,30.95546082]
[1740156224856,1.8739,175.01,174.88,30.95546082]
[1740156225147,0.04194375,174.95,174.88,30.95546082]
[1740156225848,0.04194375,174.95,174.94,5.7149]
[1740156226154,1.7697,175.06,174.88,9.76]
[1740156226350,3.5878,175.05,174.88,9.76]
[1740156226948,5.7118,175.04,174.88,9.76]
[1740156227144,5.7118,175.04,174.95,0.03690193]
[1740156227350,0.04038986,174.98,174.95,0.03690193]
[1740156228252,0.04038986,174.98,174.97,5.714]
[1740156228549,0.04038986,174.98,174.96,5.7142]
[1740156228754,0.04038986,174.98,174.95,0.03690193]
[1740156230555,5.75408986,174.98,174.95,0.03690193]
[1740156231746,5.714,174.97,174.95,0.03690193]
[1740156232148,0.04038986,174.98,174.95,0.03690193]
[1740156232345,5.7143,174.96,174.95,0.03690193]
[1740156233146,0.04038986,174.98,174.86,9.74]
[1740156233349,0.04038986,174.98,174.88,1.7481]
[1740156233553,3.5878,175.05,174.88,1.7481]
[1740156234147,5.7121,175.03,174.88,1.7481]
[1740156234352,0.03874691,174.98,174.88,1.7481]
[1740156236255,0.03874691,174.98,174.94,5.7147]
[1740156236460,0.03874691,174.98,174.88,1.7481]
[1740156236759,0.03874691,174.98,174.97,5.714]
[1740156237160,0.03874691,174.98,174.88,1.7481]
[1740156237953,0.03874691,174.98,174.89,149.54]
[1740156238861,3.5878,175.05,174.89,149.54]
[1740156239262,5.7119,175.04,174.99,5.7131]
[1740156239463,5.7119,175.04,174.89,149.54]
[1740156239668,1.8033,175.13,174.9,11.4325]
[1740156239957,5.7108,175.07,174.9,11.4325]
[1740156240159,0.04173376,175.03,175.0,0.03877787]
[1740156240355,0.04173376,175.03,174.9,11.4325]
[1740156240356,5.7103,175.09,174.96,9.74]
[1740156240553,3.5968,175.12,174.97,3.6036]
[1740156241565,5.7107,175.07,175.03,0.03865393]
[1740156241766,0.04189362,175.06,175.03,0.03865393]
[1740156242167,0.04189362,175.06,175.03,5.75055393]
[1740156242964,0.04189362,175.06,175.03,0.03865393]
[1740156243168,0.04189362,175.06,175.04,5.7114]
[1740156245064,0.04189362,175.06,175.05,5.7113]
[1740156245265,193.45185664,175.22,175.03,0.03865393]
[1740156245465,1.784,175.2,175.03,159.27865393]
[1740156245665,185.16553981,175.21,175.04,1.7034]
[1740156245962,179.45933981,175.21,175.05,1.8096]
[1740156246164,156.52896791,175.23,175.05,1.8096]
[1740156246365,156.52896791,175.23,175.11,0.04266417]
[1740156246570,0.04380735,175.15,175.11,0.04266417]
[1740156246770,156.52896791,175.23,175.05,1.8096]
[1740156247165,0.04232848,175.15,175.11,0.03842918]
[1740156247470,156.52896791,175.23,175.05,1.8096]
[1740156247671,0.03737812,175.15,175.11,0.0396359]
[1740156247971,1.7703,175.22,175.05,1.8096]
[1740156248169,0.04157257,175.15,175.11,0.03703742]
[1740156248569,5.74997257,175.15,175.05,1.8096]
[1740156248770,0.04157257,175.15,175.11,0.03761616]
[1740156248967,0.04157257,175.15,175.12,5.7088]
[1740156249368,0.04157257,175.15,175.11,0.03761616]
[1740156251572,0.04157257,175.15,175.14,5.7084]
[1740156251775,0.04157257,175.15,175.11,0.03761616]
[1740156252977,1.6969,175.26,175.11,0.03761616]
[1740156253169,1.6969,175.26,175.05,3.539]
[1740156253478,5.7051,175.25,175.17,5.7074]
[1740156253774,1.6969,175.26,175.05,3.539]
[1740156254075,0.04365376,175.17,175.14,0.0417336]
[1740156254281,5.7069,175.19,175.05,3.539]
[1740156254477,5.7078,175.16,175.14,0.0361235]
[1740156254681,0.03825445,175.17,175.05,3.539]
[1740156254881,1.04939712,175.24,175.13,0.03982717]
[1740156255077,0.0424601,175.17,175.13,0.03982717]
[1740156255378,0.0424601,175.17,175.05,3.539]
[1740156255578,5.7067,175.2,175.13,5.7491974]
[1740156255781,5.7067,175.2,175.05,3.539]
[1740156256077,0.04246896,175.13,175.12,5.7091]
[1740156256284,194.0,175.25,175.11,0.04143912]
[1740156256585,0.04114913,175.14,175.05,3.539]
[1740156256885,194.0,175.25,175.16,0.03996517]
[1740156257087,0.03596184,175.11,175.05,3.539]
[1740156257279,1.04921811,175.25,175.05,3.539]
[1740156257480,0.03925869,175.1,175.06,0.03838176]
[1740156257780,1.04921811,175.24,175.05,3.539]
[1740156257980,1.04921811,175.24,175.12,5.7091]
[1740156258177,1.04921811,175.24,175.05,1.8096]
[1740156258577,5.708,175.16,175.05,1.8096]
[1740156258782,5.74989639,175.16,175.13,0.04181337]
[1740156259085,0.04225735,175.16,175.13,0.03983888]
[1740156260084,5.7084,175.14,175.13,0.03983888]
[1740156260385,0.04225735,175.16,175.13,0.03983888]
[1740156260585,5.75025735,175.16,175.13,0.03983888]
[1740156260789,0.04225735,175.16,175.13,0.03983888]
[1740156262179,0.04225735,175.16,175.03,149.5]
[1740156262386,9.72,175.2,174.93,19.19081682]
[1740156262580,4.65081301,175.19,174.93,7.76061682]
[1740156262785,5.7121,175.03,174.93,7.76061682]
[1740156262985,194.0,175.18,174.93,7.76061682]
[1740156263278,5.7102,175.09,174.93,7.76061682]
[1740156263486,0.04221789,175.07,175.04,2.906e-05]
[1740156263681,1.0501968,175.07,174.93,7.76061682]
[1740156263879,1.0501968,175.07,174.94,5.7147]
[1740156264082,1.0501968,175.07,174.91,62.08493456]
[1740156264281,1.0501968,175.07,174.9,149.4]
[1740156264690,0.03846519,175.0,174.97,0.04277815]
[1740156264885,0.03846519,175.0,174.9,149.4]
[1740156265183,1.0501968,175.07,174.9,149.4]
[1740156265592,1.0501968,175.07,174.92,5.7156]
[1740156266187,0.04084738,175.01,174.98,0.03908636]
[1740156266388,0.04084738,175.01,174.91,5.7159]
[1740156266581,0.04084738,175.01,174.9,149.4]
[1740156266786,5.7139,174.98,174.9,149.4]
[1740156266986,5.7139,174.98,174.91,5.7157]
[1740156267199,5.7139,174.98,174.9,149.4]
[1740156267581,0.04164955,174.96,174.92,0.040319]
[1740156268086,0.04164955,174.96,174.92,5.755919]
[1740156268691,5.75624955,174.96,174.92,0.040319]
[1740156268891,0.04164955,174.96,174.92,0.040319]
[1740156269494,5.75594955,174.96,174.92,5.755619]
[1740156269697,0.04164955,174.96,174.92,0.040319]
[1740156273996,0.04164955,174.96,174.93,5.715]
[1740156274190,0.04164955,174.96,174.92,0.040319]
[1740156274893,0.04164955,174.96,174.92,5.755819]
[1740156275692,5.75604955,174.96,174.92,5.755819]
[1740156276096,0.04164955,174.96,174.92,5.755819]
[1740156276996,0.04164955,174.96,174.92,0.040319]
[1740156277198,0.04164955,174.96,174.93,5.7152]
[1740156277596,0.04164955,174.96,174.92,5.755819]
[1740156277794,0.04164955,174.96,174.92,0.040319]
[1740156278298,5.75624955,174.96,174.92,0.040319]
[1740156278694,0.04164955,174.96,174.92,0.040319]
[1740156279698,5.715,174.94,174.92,0.040319]
[1740156280100,0.04164955,174.96,174.92,0.040319]
[1740156280401,0.04164955,174.96,174.8,149.54]
[1740156280796,5.7169,174.89,174.85,5.7177]
[1740156281198,5.7169,174.89,174.8,149.54]
[1740156281502,0.04243533,174.89,174.8,149.54]
[1740156281802,0.04243533,174.89,174.7,466.7600408]
[1740156281999,5.7177,174.86,174.81,5.719]
[1740156282305,0.04101959,174.85,174.72,5.3045]
[1740156282506,5.75891959,174.85,174.8,5.7193]
[1740156282692,1.8306,174.97,174.73,9.7]
[1740156282897,0.03840604,174.84,174.73,9.7]
[1740156283098,5.7176,174.86,174.73,9.7]
[1740156283299,0.04065276,174.83,174.73,9.7]
[1740156283903,0.04065276,174.83,174.8,5.7194]
[1740156284103,0.04065276,174.83,174.73,9.7]
[1740156285005,0.04065276,174.83,174.82,5.7189]
[1740156285905,1.7609,174.95,174.73,9.7]
[1740156286300,1.7609,174.95,174.73,21.1431]
[1740156286504,5.715,174.94,174.88,5.7166]
[1740156286902,1.7609,174.95,174.88,5.7166]
[1740156287102,0.04340295,174.93,174.89,0.03872299]
[1740156287304,1.7609,174.95,174.73,21.1431]
[1740156287499,0.04122992,174.93,174.89,0.03806]
[1740156287899,0.03621474,174.93,174.76,9.7]
[1740156288306,1.7609,174.95,174.76,9.7]
[1740156288507,0.04148965,174.87,174.84,0.04064986]
[1740156288809,1.7609,174.95,174.76,9.7]
[1740156289007,0.03912562,174.87,174.84,0.03961458]
[1740156289199,1.7609,174.95,174.76,9.7]
[1740156289400,0.04328524,174.87,174.84,0.03889167]
[1740156289597,5.7163,174.9,174.85,5.7178]
[1740156289806,1.7609,174.95,174.85,5.7178]
[1740156290308,5.7165,174.9,174.88,0.04207571]
[1740156290904,0.04000552,174.92,174.88,0.04207571]
[1740156291403,0.04000552,174.92,174.75,9.7]
[1740156291605,1.7609,174.95,174.82,5.7186]
[1740156292508,5.7176,174.86,174.83,5.7185]
[1740156292707,1.7609,174.95,174.83,5.7185]
[1740156292904,0.04292826,174.86,174.83,5.7185]
[1740156293208,1.7609,174.95,174.73,21.1431]
[1740156293411,0.03990949,174.86,174.79,1.7771]
[1740156295506,5.7179,174.85,174.81,5.7189]
[1740156295711,0.03990949,174.86,174.81,5.7189]
[1740156295912,0.03990949,174.86,174.79,1.7771]
[1740156296105,5.75770949,174.86,174.81,5.7189]
[1740156296306,0.03990949,174.86,174.79,1.7771]
[1740156296512,0.03990949,174.86,174.72,3.5016]
[1740156297011,0.03990949,174.86,174.73,1.714]
[1740156297213,5.7188,174.83,174.78,6.52371605]
[1740156297409,194.0,174.94,174.78,0.80381605]
[1740156297610,0.04039858,174.82,174.73,1.714]
[1740156297908,194.0,174.93,174.73,1.714]
[1740156298106,0.04010815,174.79,174.78,5.7199]
[1740156298311,1.7671,174.92,174.73,1.714]